[Event "*** Titled Tuesday Blitz"]
[Site "Chess.com"]
[Date "2020.05.05"]
[Round "6"]
[White "Noam_Vitenberg"]
[Black "kasparicy"]
[Result "1-0"]
[WhiteElo "2492"]
[BlackElo "2305"]
[TimeControl "180+1"]
[EndTime "11:04:58 PDT"]
[Termination "Noam_Vitenberg won by resignation"]

1. d4 {[%clk 0:03:00.9]} 1... Nf6 {[%clk 0:02:58.9]} 2. c4 {[%clk 0:02:58.7]}
2... g6 {[%clk 0:02:59.1]} 3. Nc3 {[%clk 0:02:57]} 3... d5 {[%clk 0:02:58.4]} 4.
cxd5 {[%clk 0:02:55.4]} 4... Nxd5 {[%clk 0:02:58.2]} 5. e4 {[%clk 0:02:55.6]}
5... Nxc3 {[%clk 0:02:57.8]} 6. bxc3 {[%clk 0:02:56.1]} 6... Bg7 {[%clk
0:02:58.7]} 7. Nf3 {[%clk 0:02:55]} 7... c5 {[%clk 0:02:59.6]} 8. Be3 {[%clk
0:02:54.2]} 8... O-O {[%clk 0:02:59.5]} 9. Rc1 {[%clk 0:02:51.7]} 9... cxd4
{[%clk 0:02:53]} 10. cxd4 {[%clk 0:02:51.4]} 10... b6 {[%clk 0:02:52.8]} 11. Bd3
{[%clk 0:02:43.2]} 11... Bb7 {[%clk 0:02:52.6]} 12. O-O {[%clk 0:02:42.7]} 12...
Nd7 {[%clk 0:02:38.9]} 13. Qa4 {[%clk 0:02:41]} 13... Nf6 {[%clk 0:02:38]} 14.
d5 {[%clk 0:02:16.9]} 14... Qd6 {[%clk 0:02:25.7]} 15. e5 {[%clk 0:02:11.6]}
15... Qxd5 {[%clk 0:02:12.4]} 16. exf6 {[%clk 0:02:11.1]} 16... Bxf6 {[%clk
0:02:08.3]} 17. Rfd1 {[%clk 0:02:07.3]} 17... Qh5 {[%clk 0:02:06.4]} 18. Be4
{[%clk 0:01:51.3]} 18... b5 {[%clk 0:01:57.7]} 19. Qb4 {[%clk 0:01:49.9]} 19...
a5 {[%clk 0:01:54.6]} 20. Qb1 {[%clk 0:01:48.3]} 20... Bxe4 {[%clk 0:01:42.3]}
21. Qxe4 {[%clk 0:01:49.2]} 21... Rfd8 {[%clk 0:01:39.6]} 22. h3 {[%clk
0:01:40.3]} 22... b4 {[%clk 0:01:33.9]} 23. Rxd8+ {[%clk 0:01:29.7]} 23... Rxd8
{[%clk 0:01:32.5]} 24. Rc5 {[%clk 0:01:28.3]} 24... e5 {[%clk 0:01:21]} 25. Rxa5
{[%clk 0:01:23.3]} 1-0

[Event "*** Titled Tuesday Blitz"]
[Site "Chess.com"]
[Date "2020.05.05"]
[Round "6"]
[White "Maybe00"]
[Black "artooon"]
[Result "1-0"]
[WhiteElo "2815"]
[BlackElo "2638"]
[TimeControl "180+1"]
[EndTime "11:05:06 PDT"]
[Termination "Maybe00 won by checkmate"]

1. d4 {[%clk 0:03:00.9]} 1... Nf6 {[%clk 0:02:58.9]} 2. c4 {[%clk 0:03:00.9]}
2... e6 {[%clk 0:02:59]} 3. Nf3 {[%clk 0:03:00.6]} 3... d6 {[%clk 0:02:59.1]} 4.
Nc3 {[%clk 0:03:00.3]} 4... Nbd7 {[%clk 0:02:59.5]} 5. g3 {[%clk 0:02:59.2]}
5... b6 {[%clk 0:02:58.9]} 6. Bg2 {[%clk 0:02:59.2]} 6... Bb7 {[%clk 0:02:55.1]}
7. O-O {[%clk 0:02:59.3]} 7... g6 {[%clk 0:02:55.5]} 8. Qc2 {[%clk 0:02:58.7]}
8... Bg7 {[%clk 0:02:53]} 9. e4 {[%clk 0:02:59]} 9... O-O {[%clk 0:02:48]} 10.
Rd1 {[%clk 0:02:58.5]} 10... Qe7 {[%clk 0:02:46.7]} 11. h3 {[%clk 0:02:57.9]}
11... e5 {[%clk 0:02:46.3]} 12. dxe5 {[%clk 0:02:55.4]} 12... Nxe5 {[%clk
0:02:45.9]} 13. Nxe5 {[%clk 0:02:55.8]} 13... dxe5 {[%clk 0:02:40.6]} 14. Nd5
{[%clk 0:02:55.1]} 14... Nxd5 {[%clk 0:02:41]} 15. cxd5 {[%clk 0:02:53.4]} 15...
Rac8 {[%clk 0:02:37]} 16. a4 {[%clk 0:02:51.6]} 16... c6 {[%clk 0:02:34.8]} 17.
Qb3 {[%clk 0:02:47.1]} 17... cxd5 {[%clk 0:02:28.4]} 18. exd5 {[%clk 0:02:48]}
18... Qd7 {[%clk 0:02:24.4]} 19. a5 {[%clk 0:02:46.1]} 19... Ba6 {[%clk
0:02:11.4]} 20. axb6 {[%clk 0:02:39.3]} 20... Bc4 {[%clk 0:02:10.2]} 21. Qb4
{[%clk 0:02:39.5]} 21... axb6 {[%clk 0:02:09.7]} 22. Qxb6 {[%clk 0:02:39.4]}
22... Rb8 {[%clk 0:02:09.3]} 23. Qc6 {[%clk 0:02:36.7]} 23... Rfd8 {[%clk
0:02:06]} 24. Bg5 {[%clk 0:02:33.8]} 24... f6 {[%clk 0:02:00.7]} 25. Qxc4 {[%clk
0:02:05]} 25... Rdc8 {[%clk 0:01:50.2]} 26. Qc6 {[%clk 0:01:50.2]} 26... Rxc6
{[%clk 0:01:47.3]} 27. dxc6 {[%clk 0:01:51.1]} 27... Qc7 {[%clk 0:01:47.9]} 28.
Rd7 {[%clk 0:01:47.3]} 28... Qb6 {[%clk 0:01:44.9]} 29. Be3 {[%clk 0:01:40.9]}
29... Qxb2 {[%clk 0:01:43]} 30. Raa7 {[%clk 0:01:40.2]} 30... Bh8 {[%clk
0:01:33.3]} 31. Bd5+ {[%clk 0:01:37.6]} 31... Kf8 {[%clk 0:01:33.7]} 32. Bc5+
{[%clk 0:01:31.8]} 32... Ke8 {[%clk 0:01:31.6]} 33. Bf7# {[%clk 0:01:32]} 1-0

[Event "*** Titled Tuesday Blitz"]
[Site "Chess.com"]
[Date "2020.05.05"]
[Round "6"]
[White "Walter_White_Poland"]
[Black "j2806"]
[Result "1/2-1/2"]
[WhiteElo "2150"]
[BlackElo "1989"]
[TimeControl "180+1"]
[EndTime "11:05:15 PDT"]
[Termination "Game drawn by agreement"]

1. e4 {[%clk 0:03:00.9]} 1... c5 {[%clk 0:02:59.7]} 2. c4 {[%clk 0:02:59]} 2...
Nc6 {[%clk 0:02:58.1]} 3. Nc3 {[%clk 0:02:58.8]} 3... Nf6 {[%clk 0:02:55.6]} 4.
g3 {[%clk 0:02:57.8]} 4... e5 {[%clk 0:02:55.1]} 5. Bg2 {[%clk 0:02:57.1]} 5...
d6 {[%clk 0:02:53.6]} 6. Nge2 {[%clk 0:02:56.3]} 6... Nd4 {[%clk 0:02:51.3]} 7.
h3 {[%clk 0:02:54.2]} 7... Be7 {[%clk 0:02:50.6]} 8. d3 {[%clk 0:02:54]} 8... a6
{[%clk 0:02:48.2]} 9. Rb1 {[%clk 0:02:52.4]} 9... Rb8 {[%clk 0:02:45.5]} 10. a3
{[%clk 0:02:52.2]} 10... b5 {[%clk 0:02:44.3]} 11. cxb5 {[%clk 0:02:52.3]} 11...
axb5 {[%clk 0:02:44]} 12. b4 {[%clk 0:02:52.1]} 12... Nxe2 {[%clk 0:02:40.5]}
13. Qxe2 {[%clk 0:02:49]} 13... cxb4 {[%clk 0:02:29.9]} 14. axb4 {[%clk
0:02:46.5]} 14... O-O {[%clk 0:02:27.9]} 15. O-O {[%clk 0:02:45.3]} 15... Qc7
{[%clk 0:02:23.1]} 16. Bd2 {[%clk 0:02:44.3]} 16... Rd8 {[%clk 0:02:22]} 17.
Rfc1 {[%clk 0:02:43.5]} 17... Qb6 {[%clk 0:02:20.2]} 18. Be3 {[%clk 0:02:36.8]}
18... Qb7 {[%clk 0:02:15.4]} 19. f4 {[%clk 0:02:24.4]} 19... Qd7 {[%clk
0:02:10.3]} 20. f5 {[%clk 0:02:19.4]} 20... Bb7 {[%clk 0:02:07.7]} 21. Kh2
{[%clk 0:02:17.5]} 21... d5 {[%clk 0:02:06.2]} 22. Bg5 {[%clk 0:02:10.5]} 22...
dxe4 {[%clk 0:02:02.9]} 23. dxe4 {[%clk 0:02:06.1]} 23... h6 {[%clk 0:02:00.4]}
24. Bxf6 {[%clk 0:02:05.5]} 24... Bxf6 {[%clk 0:01:59]} 25. Rd1 {[%clk
0:01:58.7]} 25... Qe8 {[%clk 0:01:53.2]} 26. Rxd8 {[%clk 0:01:50.8]} 26... Qxd8
{[%clk 0:01:50.7]} 27. Rd1 {[%clk 0:01:42.5]} 27... Qb6 {[%clk 0:01:48.1]} 28.
Nd5 {[%clk 0:01:41]} 28... Bxd5 {[%clk 0:01:45.5]} 29. Rxd5 {[%clk 0:01:40.9]}
29... Be7 {[%clk 0:01:42.5]} 30. Bf1 {[%clk 0:01:37.8]} 30... Bxb4 {[%clk
0:01:37.8]} 31. Rxb5 {[%clk 0:01:36.9]} 31... Qxb5 {[%clk 0:01:38]} 32. Qxb5
{[%clk 0:01:36.5]} 32... Rxb5 {[%clk 0:01:38.6]} 33. Bxb5 {[%clk 0:01:36.6]}
33... Kf8 {[%clk 0:01:38.3]} 34. Kg2 {[%clk 0:01:36.6]} 34... f6 {[%clk
0:01:38.5]} 35. Kf3 {[%clk 0:01:35.8]} 35... Ke7 {[%clk 0:01:33.9]} 36. Bc4
{[%clk 0:01:35.5]} 36... Bc3 {[%clk 0:01:32.4]} 37. Ba2 {[%clk 0:01:34.6]} 37...
Bd4 {[%clk 0:01:32.3]} 38. Kg4 {[%clk 0:01:34.2]} 38... Kf8 {[%clk 0:01:32.4]}
39. Kh5 {[%clk 0:01:33.8]} 39... Bc3 {[%clk 0:01:32.1]} 40. Kg6 {[%clk
0:01:32.4]} 40... Bd2 {[%clk 0:01:31.2]} 41. g4 {[%clk 0:01:29.3]} 41... Bc1
{[%clk 0:01:31.1]} 42. Bb3 {[%clk 0:01:28.7]} 42... Bd2 {[%clk 0:01:30.9]} 43.
Kh7 {[%clk 0:01:27.8]} 43... Be3 {[%clk 0:01:30.9]} 1/2-1/2

[Event "*** Titled Tuesday Blitz"]
[Site "Chess.com"]
[Date "2020.05.05"]
[Round "6"]
[White "vangulio"]
[Black "Angry_Twin"]
[Result "0-1"]
[WhiteElo "2514"]
[BlackElo "2830"]
[TimeControl "180+1"]
[EndTime "11:05:17 PDT"]
[Termination "Angry_Twin won on time"]

1. e4 {[%clk 0:03:00.9]} 1... c5 {[%clk 0:02:58.6]} 2. Nf3 {[%clk 0:02:57.6]}
2... d6 {[%clk 0:02:57.7]} 3. d4 {[%clk 0:02:56.4]} 3... cxd4 {[%clk 0:02:58.6]}
4. Nxd4 {[%clk 0:02:55.6]} 4... Nf6 {[%clk 0:02:58.8]} 5. Nc3 {[%clk 0:02:56.1]}
5... a6 {[%clk 0:02:58.8]} 6. Be3 {[%clk 0:02:56.6]} 6... e5 {[%clk 0:02:58.7]}
7. Nb3 {[%clk 0:02:57.1]} 7... Be7 {[%clk 0:02:58.7]} 8. Qd2 {[%clk 0:02:57.6]}
8... Be6 {[%clk 0:02:59.1]} 9. f4 {[%clk 0:02:58.1]} 9... b5 {[%clk 0:02:55.6]}
10. O-O-O {[%clk 0:02:56.5]} 10... Nbd7 {[%clk 0:02:53.9]} 11. f5 {[%clk
0:02:56.2]} 11... Bc4 {[%clk 0:02:50.4]} 12. g4 {[%clk 0:02:51.5]} 12... Nxg4
{[%clk 0:02:47.9]} 13. Rg1 {[%clk 0:02:50.5]} 13... Nxe3 {[%clk 0:02:40]} 14.
Qxe3 {[%clk 0:02:48.8]} 14... Qb6 {[%clk 0:02:29.4]} 15. Qg3 {[%clk 0:02:18.7]}
15... Nf6 {[%clk 0:02:04.9]} 16. Qxg7 {[%clk 0:02:00.7]} 16... O-O-O {[%clk
0:01:51.6]} 0-1

[Event "*** Titled Tuesday Blitz"]
[Site "Chess.com"]
[Date "2020.05.05"]
[Round "6"]
[White "PetrolulSah"]
[Black "dianosky"]
[Result "0-1"]
[WhiteElo "2266"]
[BlackElo "2437"]
[TimeControl "180+1"]
[EndTime "11:05:19 PDT"]
[Termination "dianosky won by checkmate"]

1. d4 {[%clk 0:02:57.3]} 1... d5 {[%clk 0:02:59.6]} 2. c4 {[%clk 0:02:57.1]}
2... dxc4 {[%clk 0:02:59.8]} 3. e4 {[%clk 0:02:56.6]} 3... a6 {[%clk 0:03:00]}
4. Bxc4 {[%clk 0:02:54]} 4... b5 {[%clk 0:03:00.3]} 5. Bd5 {[%clk 0:02:53.4]}
5... c6 {[%clk 0:03:00.5]} 6. Bb3 {[%clk 0:02:51]} 6... Nf6 {[%clk 0:02:59.8]}
7. e5 {[%clk 0:02:49.4]} 7... Nd5 {[%clk 0:02:59.9]} 8. Nc3 {[%clk 0:02:48.3]}
8... e6 {[%clk 0:02:57.6]} 9. Nf3 {[%clk 0:02:42.1]} 9... h6 {[%clk 0:02:56.8]}
10. O-O {[%clk 0:02:41.2]} 10... Nd7 {[%clk 0:02:56.1]} 11. Nxd5 {[%clk
0:02:39.7]} 11... cxd5 {[%clk 0:02:55.7]} 12. Bd2 {[%clk 0:02:36.8]} 12... Nb6
{[%clk 0:02:55.6]} 13. Ba5 {[%clk 0:02:32.1]} 13... Qc7 {[%clk 0:02:53.4]} 14.
Rc1 {[%clk 0:02:31.4]} 14... Qb7 {[%clk 0:02:53.6]} 15. Bxb6 {[%clk 0:02:28.1]}
15... Qxb6 {[%clk 0:02:53.8]} 16. a4 {[%clk 0:02:26.4]} 16... Bd7 {[%clk
0:02:53.2]} 17. Qd2 {[%clk 0:02:20.4]} 17... bxa4 {[%clk 0:02:52.2]} 18. Ba2
{[%clk 0:02:13.2]} 18... Rb8 {[%clk 0:02:50.5]} 19. Rc2 {[%clk 0:02:11.6]} 19...
Bb4 {[%clk 0:02:40.6]} 20. Qf4 {[%clk 0:02:07.2]} 20... O-O {[%clk 0:02:40.8]}
21. g4 {[%clk 0:02:02.8]} 21... Be7 {[%clk 0:02:31.4]} 22. g5 {[%clk 0:01:55.4]}
22... h5 {[%clk 0:02:20.6]} 23. g6 {[%clk 0:01:38.9]} 23... fxg6 {[%clk
0:02:14.8]} 24. Qg3 {[%clk 0:01:38.7]} 24... Bb5 {[%clk 0:02:09.1]} 25. Rfc1
{[%clk 0:01:33.8]} 25... Bd3 {[%clk 0:02:06.1]} 26. Rc7 {[%clk 0:01:31.3]} 26...
Rb7 {[%clk 0:01:57.5]} 27. Rxb7 {[%clk 0:01:21.2]} 27... Qxb7 {[%clk 0:01:56.6]}
28. Ng5 {[%clk 0:01:03.1]} 28... Qxb2 {[%clk 0:01:43.9]} 29. Rc7 {[%clk
0:00:54]} 29... Qa1+ {[%clk 0:01:36.5]} 30. Kg2 {[%clk 0:00:51.2]} 30... Qf1#
{[%clk 0:01:35.9]} 0-1

[Event "*** Titled Tuesday Blitz"]
[Site "Chess.com"]
[Date "2020.05.05"]
[Round "6"]
[White "UCantHandleDenker"]
[Black "ozates"]
[Result "0-1"]
[WhiteElo "2560"]
[BlackElo "2385"]
[TimeControl "180+1"]
[EndTime "11:05:20 PDT"]
[Termination "ozates won by resignation"]

1. Nf3 {[%clk 0:02:58.8]} 1... c5 {[%clk 0:02:59.5]} 2. g3 {[%clk 0:02:58]} 2...
Nc6 {[%clk 0:02:59.7]} 3. Bg2 {[%clk 0:02:58.5]} 3... e5 {[%clk 0:03:00.1]} 4.
d3 {[%clk 0:02:57.7]} 4... g6 {[%clk 0:03:00.4]} 5. O-O {[%clk 0:02:58.2]} 5...
Bg7 {[%clk 0:03:00.9]} 6. e4 {[%clk 0:02:58.7]} 6... d6 {[%clk 0:03:01.2]} 7. c3
{[%clk 0:02:58.2]} 7... h6 {[%clk 0:03:00.8]} 8. a3 {[%clk 0:02:58.8]} 8... Be6
{[%clk 0:03:01.3]} 9. b4 {[%clk 0:02:58.8]} 9... Nge7 {[%clk 0:03:00.8]} 10.
Nbd2 {[%clk 0:02:58.1]} 10... Qd7 {[%clk 0:03:01.3]} 11. b5 {[%clk 0:02:56.3]}
11... Nd8 {[%clk 0:03:00]} 12. a4 {[%clk 0:02:51.3]} 12... O-O {[%clk 0:03:00]}
13. Re1 {[%clk 0:02:46.2]} 13... f5 {[%clk 0:02:59.5]} 14. exf5 {[%clk
0:02:43.7]} 14... Bxf5 {[%clk 0:02:57.4]} 15. Nc4 {[%clk 0:02:41.7]} 15... Nf7
{[%clk 0:02:45]} 16. Nh4 {[%clk 0:01:53.9]} 16... Bh3 {[%clk 0:02:35.1]} 17. Qe2
{[%clk 0:01:46.5]} 17... d5 {[%clk 0:02:20.7]} 18. Ne3 {[%clk 0:01:41.7]} 18...
Bxg2 {[%clk 0:02:19.8]} 19. Nhxg2 {[%clk 0:01:32.8]} 19... Ng5 {[%clk
0:02:11.3]} 20. f4 {[%clk 0:00:57.2]} 20... Nh3+ {[%clk 0:02:08]} 21. Kh1 {[%clk
0:00:56.7]} 21... exf4 {[%clk 0:02:08.6]} 22. gxf4 {[%clk 0:00:55.5]} 22... Nxf4
{[%clk 0:02:06.8]} 23. Nxf4 {[%clk 0:00:51.3]} 23... Rxf4 {[%clk 0:02:07.7]} 24.
Ng2 {[%clk 0:00:51.6]} 24... Rf7 {[%clk 0:02:07.3]} 25. Bd2 {[%clk 0:00:48.5]}
25... Raf8 {[%clk 0:02:06.4]} 26. Rf1 {[%clk 0:00:36.1]} 26... Nf5 {[%clk
0:01:56.7]} 27. Qg4 {[%clk 0:00:34.3]} 27... Ng3+ {[%clk 0:01:48]} 28. Qxg3
{[%clk 0:00:33.3]} 28... Rxf1+ {[%clk 0:01:47.1]} 0-1

[Event "*** Titled Tuesday Blitz"]
[Site "Chess.com"]
[Date "2020.05.05"]
[Round "6"]
[White "starplatinum2030"]
[Black "Char_dasha"]
[Result "1-0"]
[WhiteElo "2135"]
[BlackElo "2218"]
[TimeControl "180+1"]
[EndTime "11:05:21 PDT"]
[Termination "starplatinum2030 won on time"]

1. e4 {[%clk 0:03:00.9]} 1... d5 {[%clk 0:02:59.8]} 2. exd5 {[%clk 0:03:00.8]}
2... Qxd5 {[%clk 0:03:00]} 3. Nc3 {[%clk 0:03:01.4]} 3... Qd6 {[%clk 0:03:00.3]}
4. d4 {[%clk 0:03:01.9]} 4... Nf6 {[%clk 0:03:00.5]} 5. Nge2 {[%clk 0:03:02.3]}
5... g6 {[%clk 0:02:56.9]} 6. Bf4 {[%clk 0:03:02.7]} 6... Qb6 {[%clk 0:02:56.7]}
7. Qd2 {[%clk 0:02:58.4]} 7... Bg7 {[%clk 0:02:53.3]} 8. O-O-O {[%clk
0:02:54.8]} 8... O-O {[%clk 0:02:52.9]} 9. f3 {[%clk 0:02:48.4]} 9... Na6 {[%clk
0:01:57.8]} 10. Bh6 {[%clk 0:02:36.4]} 10... c5 {[%clk 0:01:33.8]} 11. Bxg7
{[%clk 0:02:30.3]} 11... Kxg7 {[%clk 0:01:34.1]} 12. g4 {[%clk 0:02:29.2]} 12...
Be6 {[%clk 0:01:14.4]} 13. d5 {[%clk 0:02:19.2]} 13... Bd7 {[%clk 0:01:04]} 14.
h4 {[%clk 0:02:18.4]} 14... Rfd8 {[%clk 0:00:41.1]} 15. h5 {[%clk 0:02:15.7]}
15... Be8 {[%clk 0:00:34.9]} 16. hxg6 {[%clk 0:02:11.6]} 16... fxg6 {[%clk
0:00:35.2]} 17. Qh6+ {[%clk 0:02:11.7]} 17... Kg8 {[%clk 0:00:35.5]} 18. Nf4
{[%clk 0:02:06.5]} 18... Qd6 {[%clk 0:00:33]} 19. Ne6 {[%clk 0:02:00.3]} 1-0

[Event "*** Titled Tuesday Blitz"]
[Site "Chess.com"]
[Date "2020.05.05"]
[Round "6"]
[White "Blitzking642"]
[Black "Al_Shima"]
[Result "1/2-1/2"]
[WhiteElo "2310"]
[BlackElo "2450"]
[TimeControl "180+1"]
[EndTime "11:05:27 PDT"]
[Termination "Game drawn by repetition"]

1. d4 {[%clk 0:03:00.5]} 1... b5 {[%clk 0:02:58.9]} 2. e4 {[%clk 0:02:59.5]}
2... Bb7 {[%clk 0:02:58.8]} 3. Bd3 {[%clk 0:02:58.9]} 3... Nf6 {[%clk
0:02:57.7]} 4. Qe2 {[%clk 0:02:58.1]} 4... a6 {[%clk 0:02:55.4]} 5. Nf3 {[%clk
0:02:54.2]} 5... e6 {[%clk 0:02:55.4]} 6. Nbd2 {[%clk 0:02:53.2]} 6... c5 {[%clk
0:02:54.8]} 7. c3 {[%clk 0:02:52.7]} 7... Be7 {[%clk 0:02:54.3]} 8. O-O {[%clk
0:02:51.9]} 8... O-O {[%clk 0:02:53.7]} 9. e5 {[%clk 0:02:51.1]} 9... Nd5 {[%clk
0:02:53]} 10. Ne4 {[%clk 0:02:50.5]} 10... c4 {[%clk 0:02:52.1]} 11. Bc2 {[%clk
0:02:46.2]} 11... f5 {[%clk 0:02:51.8]} 12. exf6 {[%clk 0:02:44.9]} 12... Nxf6
{[%clk 0:02:51.8]} 13. Nfg5 {[%clk 0:02:36.1]} 13... h6 {[%clk 0:02:18.1]} 14.
Nxf6+ {[%clk 0:02:31.9]} 14... Bxf6 {[%clk 0:02:17.6]} 15. Ne4 {[%clk
0:02:23.1]} 15... Be7 {[%clk 0:02:14]} 16. Qg4 {[%clk 0:02:16.9]} 16... Kh8
{[%clk 0:02:09.2]} 17. Nc5 {[%clk 0:01:54.9]} 17... Bxc5 {[%clk 0:01:14.4]} 18.
Qg6 {[%clk 0:01:53.5]} 18... Kg8 {[%clk 0:01:14.2]} 19. Qh7+ {[%clk 0:01:52.9]}
19... Kf7 {[%clk 0:01:13.4]} 20. Qg6+ {[%clk 0:01:23.4]} 20... Kg8 {[%clk
0:01:10.7]} 21. Qh7+ {[%clk 0:00:58.4]} 21... Kf7 {[%clk 0:01:10.1]} 22. Qg6+
{[%clk 0:00:44.2]} 22... Kg8 {[%clk 0:01:09.6]} 1/2-1/2

[Event "*** Titled Tuesday Blitz"]
[Site "Chess.com"]
[Date "2020.05.05"]
[Round "6"]
[White "Alohamora11"]
[Black "Raja3401"]
[Result "0-1"]
[WhiteElo "2503"]
[BlackElo "2711"]
[TimeControl "180+1"]
[EndTime "11:05:29 PDT"]
[Termination "Raja3401 won by resignation"]

1. e4 {[%clk 0:03:00.9]} 1... c5 {[%clk 0:02:59.6]} 2. Nf3 {[%clk 0:03:00.8]}
2... d6 {[%clk 0:02:59.3]} 3. d4 {[%clk 0:02:59.7]} 3... cxd4 {[%clk 0:03:00.2]}
4. Nxd4 {[%clk 0:03:00.6]} 4... Nf6 {[%clk 0:02:57.9]} 5. Nc3 {[%clk 0:03:00.7]}
5... a6 {[%clk 0:02:58.5]} 6. a3 {[%clk 0:03:00.5]} 6... g6 {[%clk 0:02:55.9]}
7. Bc4 {[%clk 0:02:56.4]} 7... Bg7 {[%clk 0:02:53.8]} 8. Bg5 {[%clk 0:02:50.9]}
8... O-O {[%clk 0:02:53.2]} 9. Qd2 {[%clk 0:02:50.2]} 9... Nc6 {[%clk
0:02:52.1]} 10. Nf3 {[%clk 0:02:46.7]} 10... Bg4 {[%clk 0:02:50.9]} 11. O-O-O
{[%clk 0:02:34.5]} 11... Rc8 {[%clk 0:02:35.7]} 12. Kb1 {[%clk 0:02:26.8]} 12...
Bxf3 {[%clk 0:02:33.9]} 13. gxf3 {[%clk 0:02:26.2]} 13... Ne5 {[%clk 0:02:34.7]}
14. Be2 {[%clk 0:02:25.5]} 14... b5 {[%clk 0:02:20.2]} 15. h4 {[%clk 0:02:20.5]}
15... h5 {[%clk 0:02:16]} 16. Bh6 {[%clk 0:01:57.1]} 16... Bxh6 {[%clk
0:02:10.6]} 17. Qxh6 {[%clk 0:01:58]} 17... Rxc3 {[%clk 0:02:11]} 18. bxc3
{[%clk 0:01:58.7]} 18... Qa5 {[%clk 0:02:11.1]} 19. Kb2 {[%clk 0:01:02.9]} 19...
Rc8 {[%clk 0:02:10.1]} 20. Qd2 {[%clk 0:01:00.7]} 20... Nfd7 {[%clk 0:02:10.5]}
21. f4 {[%clk 0:00:56.2]} 21... Nc4+ {[%clk 0:02:06.2]} 22. Bxc4 {[%clk
0:00:56.6]} 22... Rxc4 {[%clk 0:02:06.1]} 23. f5 {[%clk 0:00:44.8]} 23... Nc5
{[%clk 0:02:00.6]} 24. fxg6 {[%clk 0:00:19]} 24... Na4+ {[%clk 0:01:58.1]} 25.
Kc1 {[%clk 0:00:17.4]} 25... Nxc3 {[%clk 0:01:58.4]} 26. gxf7+ {[%clk
0:00:13.8]} 26... Kxf7 {[%clk 0:01:59.3]} 27. Qf4+ {[%clk 0:00:13.9]} 27... Ke8
{[%clk 0:01:59.6]} 28. Rd3 {[%clk 0:00:13.1]} 28... Ne2+ {[%clk 0:01:59.6]} 0-1

[Event "*** Titled Tuesday Blitz"]
[Site "Chess.com"]
[Date "2020.05.05"]
[Round "6"]
[White "superfast64"]
[Black "AthanasiusLefebvre"]
[Result "1-0"]
[WhiteElo "2298"]
[BlackElo "2047"]
[TimeControl "180+1"]
[EndTime "11:05:39 PDT"]
[Termination "superfast64 won on time"]

1. e4 {[%clk 0:03:00.9]} 1... c5 {[%clk 0:01:42.5]} 2. Nf3 {[%clk 0:03:00.8]}
2... e6 {[%clk 0:01:43.2]} 3. d4 {[%clk 0:03:00.1]} 3... cxd4 {[%clk 0:01:44.1]}
4. Nxd4 {[%clk 0:03:01]} 4... a6 {[%clk 0:01:42.3]} 5. Nc3 {[%clk 0:03:01.2]}
5... Qc7 {[%clk 0:01:39.4]} 6. Qf3 {[%clk 0:03:00.7]} 6... b5 {[%clk 0:01:38.4]}
7. Qg3 {[%clk 0:02:59.3]} 7... Qxg3 {[%clk 0:01:20.7]} 8. hxg3 {[%clk
0:03:00.2]} 8... Bb7 {[%clk 0:01:20.2]} 9. f3 {[%clk 0:02:57.1]} 9... Nf6 {[%clk
0:01:17.4]} 10. e5 {[%clk 0:02:48.7]} 10... Nd5 {[%clk 0:01:14.2]} 11. Nxd5
{[%clk 0:02:37.5]} 11... Bxd5 {[%clk 0:01:15.1]} 12. a4 {[%clk 0:02:37.4]} 12...
b4 {[%clk 0:01:12.9]} 13. Bd3 {[%clk 0:02:34.8]} 13... Nc6 {[%clk 0:01:11.6]}
14. Nxc6 {[%clk 0:02:34]} 14... Bxc6 {[%clk 0:01:10.9]} 15. g4 {[%clk
0:02:25.3]} 15... d6 {[%clk 0:00:57.5]} 16. Bf4 {[%clk 0:02:23]} 16... dxe5
{[%clk 0:00:29.2]} 17. Bxe5 {[%clk 0:02:23.9]} 17... f6 {[%clk 0:00:29]} 18. Bf4
{[%clk 0:02:05.2]} 18... g5 {[%clk 0:00:20.1]} 19. Bg3 {[%clk 0:01:59.2]} 19...
h6 {[%clk 0:00:18.3]} 20. b3 {[%clk 0:01:56.2]} 20... Kf7 {[%clk 0:00:15.3]} 21.
O-O-O {[%clk 0:01:55.5]} 21... Bc5 {[%clk 0:00:14.5]} 22. Bc4 {[%clk 0:01:53.1]}
22... a5 {[%clk 0:00:06.5]} 23. Bd6 {[%clk 0:01:49]} 23... Be3+ {[%clk
0:00:05.3]} 24. Kb1 {[%clk 0:01:49]} 24... Rac8 {[%clk 0:00:04]} 25. Rhe1 {[%clk
0:01:47.8]} 1-0

[Event "*** Titled Tuesday Blitz"]
[Site "Chess.com"]
[Date "2020.05.05"]
[Round "6"]
[White "Nostradamus123"]
[Black "xamax2000"]
[Result "0-1"]
[WhiteElo "2494"]
[BlackElo "2705"]
[TimeControl "180+1"]
[EndTime "11:05:43 PDT"]
[Termination "xamax2000 won by resignation"]

1. d4 {[%clk 0:03:00.9]} 1... d5 {[%clk 0:02:55.9]} 2. c4 {[%clk 0:03:00.7]}
2... e6 {[%clk 0:02:56]} 3. Nf3 {[%clk 0:03:00.1]} 3... a6 {[%clk 0:02:56.5]} 4.
cxd5 {[%clk 0:02:55.4]} 4... exd5 {[%clk 0:02:57.4]} 5. Nc3 {[%clk 0:02:54]}
5... h6 {[%clk 0:02:57.8]} 6. Bf4 {[%clk 0:02:51.6]} 6... Nf6 {[%clk 0:02:58]}
7. e3 {[%clk 0:02:46.5]} 7... Bd6 {[%clk 0:02:58.9]} 8. Bxd6 {[%clk 0:02:43]}
8... Qxd6 {[%clk 0:02:59.8]} 9. Bd3 {[%clk 0:02:41.6]} 9... O-O {[%clk
0:02:59.6]} 10. O-O {[%clk 0:02:31.1]} 10... Bg4 {[%clk 0:02:59.1]} 11. h3
{[%clk 0:02:28.5]} 11... Bxf3 {[%clk 0:02:57.7]} 12. Qxf3 {[%clk 0:02:29.4]}
12... Nbd7 {[%clk 0:02:55.8]} 13. Rac1 {[%clk 0:02:24]} 13... c6 {[%clk
0:02:50.3]} 14. Rc2 {[%clk 0:02:16.5]} 14... Rfe8 {[%clk 0:02:48.9]} 15. b4
{[%clk 0:02:16.2]} 15... Re7 {[%clk 0:02:34.3]} 16. a4 {[%clk 0:02:15.3]} 16...
a5 {[%clk 0:02:00.4]} 17. b5 {[%clk 0:02:08.9]} 17... c5 {[%clk 0:01:43.7]} 18.
dxc5 {[%clk 0:01:54.5]} 18... Nxc5 {[%clk 0:01:43.6]} 19. Rd1 {[%clk 0:01:54.5]}
19... Rd8 {[%clk 0:01:10.6]} 20. Rcd2 {[%clk 0:01:45.6]} 20... Qe5 {[%clk
0:00:46.7]} 21. Rc1 {[%clk 0:01:17.1]} 21... Nb3 {[%clk 0:00:44.2]} 22. Ne2
{[%clk 0:01:10.4]} 22... Nxd2 {[%clk 0:00:43.5]} 0-1